bitfinex-derivatives/quotes_SOLF0:USTF0_20250919
["timestamp","ask_amount","ask_price","bid_price","bid_amount"]
[1758271024683,6.54,244.05,243.99,3.61054058]
[1758271024869,6.54,244.02,243.9,6.97]
[1758271025175,6.54,244.02,243.91,3.61084542]
[1758271025371,11.13553642,244.02,243.87,6.97]
[1758271025569,6.54,244.0,243.87,6.97]
[1758271026077,2.21808861,243.99,243.87,6.97]
[1758271026269,6.54,243.98,243.87,6.97]
[1758271026470,6.54,243.96,243.87,6.97]
[1758271033777,6.54,244.01,243.87,6.97]
[1758271034082,6.54,244.01,243.92,6.97]
[1758271039290,6.54,244.01,243.86,6.97]
[1758271040388,6.54,244.01,243.89,6.97]
[1758271050491,6.54,244.01,243.9,3.59165526]
[1758271050692,6.54,244.01,243.91,10.50165526]
[1758271050996,6.54,244.01,243.92,3.59165526]
[1758271051196,6.54,244.01,243.93,3.59165526]
[1758271051397,6.54,244.01,243.94,3.59165526]
[1758271051594,6.54,244.01,243.95,3.59165526]
[1758271051798,6.73,244.01,243.96,3.59165526]
[1758271051999,6.73,244.01,243.91,6.91]
[1758271052199,6.73,244.01,243.92,3.59212019]
[1758271052499,6.73,244.01,243.93,3.59212019]
[1758271052700,6.73,244.01,243.94,3.59212019]
[1758271052902,6.73,244.01,243.95,3.59212019]
[1758271053101,6.73,244.01,243.96,3.59212019]
[1758271053302,6.73,244.01,243.91,6.91]
[1758271053502,6.73,244.01,243.92,3.59322083]
[1758271053702,6.73,244.01,243.93,3.59322083]
[1758271054001,6.73,244.01,243.94,3.59322083]
[1758271054202,6.73,244.01,243.95,3.59322083]
[1758271054402,6.73,244.01,243.96,3.59322083]
[1758271054704,6.73,244.01,243.91,6.91]
[1758271054905,6.73,244.01,243.92,3.59386807]
[1758271055206,6.73,244.01,243.93,3.59386807]
[1758271055406,6.73,244.01,243.94,3.59386807]
[1758271055703,6.73,244.01,243.95,3.59386807]
[1758271055904,6.73,244.01,243.96,3.59386807]
[1758271056205,6.73,244.01,243.91,6.91]
[1758271056404,6.73,244.01,243.92,3.59545856]
[1758271056605,6.73,244.01,243.93,3.59545856]
[1758271056801,6.73,244.01,243.94,3.59545856]
[1758271057103,6.73,244.01,243.95,3.59545856]
[1758271057304,6.73,244.01,243.96,3.59545856]
[1758271057598,27.65553642,244.02,243.97,3.59545856]
[1758271057803,27.65553642,244.02,243.91,6.91]
[1758271057804,6.73,244.01,243.91,6.91]
[1758271058104,6.73,244.01,243.93,6.91]
[1758271058404,6.73,244.01,243.94,3.59638396]
[1758271058604,6.73,244.01,243.95,3.59638396]
[1758271058904,6.73,244.01,243.96,3.59638396]
[1758271059201,27.65553642,244.02,243.97,3.59638396]
[1758271059406,6.73,244.01,243.93,6.91]
[1758271059595,6.73,244.01,243.94,3.59744135]
[1758271059801,6.73,244.01,243.95,3.59744135]
[1758271059997,6.73,244.01,243.96,3.59744135]
[1758271060196,6.73,244.01,243.97,3.59744135]
[1758271060405,11.32553642,244.01,243.9,6.91]
[1758271060705,11.32553642,244.01,243.91,3.59779306]
[1758271060904,11.32553642,244.01,243.9,6.91]
[1758271060905,11.32553642,244.01,243.92,3.59779306]
[1758271061108,11.32553642,244.01,243.93,3.59779306]
[1758271061307,11.32553642,244.01,243.94,3.59779306]
[1758271061506,4.59553642,243.98,243.95,3.59779306]
[1758271061711,6.73,243.97,243.96,3.59779306]
[1758271062006,6.73,243.97,243.9,6.91]
[1758271062206,6.73,243.97,243.91,3.59816388]
[1758271062408,4.59553642,243.98,243.92,3.59816388]
[1758271062409,11.32553642,243.98,243.92,3.59816388]
[1758271062608,4.59553642,243.98,243.93,3.59816388]
[1758271062906,6.73,243.97,243.9,6.91]
[1758271063106,6.73,243.97,243.91,3.59857933]
[1758271063306,11.32553642,243.98,243.92,3.59857933]
[1758271063508,11.32553642,243.97,243.93,3.59857933]
[1758271063705,4.59553642,243.97,243.91,6.91]
[1758271064008,6.73,243.96,243.92,10.50912185]
[1758271064206,6.73,243.96,243.93,3.59912185]
[1758271064406,6.73,243.96,243.92,6.91]
[1758271064611,6.73,243.96,243.93,3.59962789]
[1758271064908,6.73,243.96,243.92,6.91]
[1758271065107,6.73,243.96,243.93,3.59962789]
[1758271065408,6.73,243.96,243.87,6.91]
[1758271065608,6.73,243.96,243.89,6.91]
[1758271065810,6.73,243.96,243.88,3.59969443]
[1758271065811,6.73,243.96,243.91,6.91]
[1758271066009,6.73,243.96,243.93,6.91]
[1758271067410,6.73,243.96,243.94,3.60088707]
[1758271067611,6.73,243.96,243.93,6.91]
[1758271067808,6.73,243.96,243.94,3.60094845]
[1758271068109,11.32553642,243.96,243.93,6.91]
[1758271068299,11.32553642,243.96,243.94,3.60094845]
[1758271068500,11.32553642,243.96,243.93,6.91]
[1758271068702,11.32553642,243.96,243.94,3.60174584]
[1758271068910,11.32553642,243.96,243.93,6.91]
[1758271069112,11.32553642,243.96,243.94,3.60174557]
[1758271069410,11.32553642,243.96,243.93,6.91]
[1758271069610,11.32553642,243.96,243.94,3.60263063]
[1758271069911,11.32553642,243.96,243.93,6.91]
[1758271070113,11.32553642,243.96,243.94,3.60263063]
[1758271070413,11.32553642,243.96,243.93,6.91]
[1758271070610,11.32553642,243.96,243.94,3.60264594]
[1758271070801,11.32553642,243.96,243.93,6.91]
[1758271071004,11.32553642,243.96,243.94,3.60264594]
[1758271071212,11.32553642,243.96,243.93,6.91]
[1758271071509,6.73,243.96,243.94,3.60284013]
[1758271071713,6.73,243.96,243.93,6.91]
[1758271071914,6.73,243.96,243.94,3.60284013]
[1758271072111,6.73,243.96,243.95,3.60284013]
[1758271073019,6.73,243.96,243.93,6.91]
[1758271073409,6.73,243.99,243.93,6.91]
[1758271074311,11.32553642,243.99,243.93,6.91]
[1758271074516,11.32553642,243.99,243.86,6.91]
[1758271074816,6.73,243.96,243.86,6.91]
[1758271075913,11.32553642,243.96,243.86,6.91]
[1758271076414,6.73,243.94,243.86,6.91]
[1758271078014,0.71382419,243.93,243.86,6.91]
[1758271081214,37.70068827,243.92,243.81,6.56]
[1758271083918,36.28,243.92,243.81,6.56]
[1758271084112,37.70068827,243.92,243.81,6.56]
[1758271084313,37.70068827,243.92,243.81,7.98068827]
[1758271084620,6.74,243.88,243.81,6.56]
[1758271085318,6.74,243.88,243.76,6.56]
[1758271085618,6.74,243.88,243.76,7.98068827]
[1758271088620,6.74,243.85,243.76,7.98068827]
[1758271093631,6.74,243.85,243.76,6.56]
[1758271099732,99.96,243.84,243.76,6.56]
[1758271099933,6.74,243.83,243.76,6.56]
[1758271101136,8.16068827,243.83,243.76,6.56]
[1758271102337,8.16068827,243.83,243.72,6.56]
[1758271107640,1.42068827,243.8,243.7,6.56]
[1758271107848,6.74,243.79,243.7,6.56]
[1758271108748,99.96,243.78,243.7,6.56]
[1758271110855,99.98,243.77,243.7,6.56]
[1758271111148,106.71,243.77,243.68,1.42068827]
[1758271111347,106.71,243.77,243.66,6.98]
[1758271111348,6.73,243.76,243.66,6.98]
[1758271117357,99.98,243.75,243.66,6.98]
[1758271117558,6.73,243.74,243.66,6.98]
[1758271119363,99.98,243.73,243.66,6.98]
[1758271120867,6.73,243.74,243.66,6.98]
[1758271121062,99.98,243.73,243.66,6.98]
[1758271121264,106.71,243.73,243.66,6.98]
[1758271121654,6.73,243.73,243.66,6.98]
[1758271121861,8.3,243.72,243.66,6.98]
[1758271123464,6.73,243.75,243.66,6.98]
[1758271123663,18.44,243.74,243.68,6.98]
[1758271124566,6.73,243.75,243.68,6.98]
[1758271124765,27.06,243.74,243.68,6.98]
[1758271125260,44.16,243.75,243.71,6.98]
[1758271125465,44.16,243.75,243.62,6.98]
[1758271125666,6.73,243.74,243.71,6.98]
[1758271126062,6.73,243.74,243.7,1.42068827]
[1758271126257,6.73,243.74,243.71,6.98]
[1758271126666,44.16,243.75,243.71,6.98]
[1758271126966,44.16,243.75,243.7,1.42068827]
[1758271127360,6.73,243.77,243.71,6.98]
[1758271127562,59.12,243.74,243.71,6.98]
[1758271127968,59.12,243.74,243.7,1.42068827]
[1758271128169,59.12,243.74,243.71,6.98]
[1758271128473,59.12,243.74,243.7,1.42068827]
[1758271128970,59.12,243.74,243.71,6.98]
[1758271129769,6.73,243.77,243.71,6.98]
[1758271129971,6.73,243.75,243.62,6.98]
[1758271130266,6.73,243.75,243.69,8.40068827]
[1758271135572,99.98,243.74,243.69,8.40068827]
[1758271137771,106.71,243.74,243.7,6.92]
[1758271138167,106.71,243.74,243.7,6.75]
[1758271138376,106.71,243.74,243.69,1.42068827]
[1758271139369,106.71,243.74,243.7,6.75]
[1758271139771,106.71,243.74,243.69,1.42068827]
[1758271140069,106.71,243.74,243.7,6.75]
[1758271140275,6.74,243.73,243.7,6.75]
[1758271140476,99.98,243.74,243.68,8.17068827]
[1758271140776,106.72,243.74,243.68,6.75]
[1758271144974,99.98,243.73,243.65,6.75]
[1758271146183,99.98,243.73,243.65,10.19625927]
[1758271146372,6.74,243.72,243.65,6.75]
[1758271150389,6.74,243.72,243.65,10.19625927]
[1758271151491,6.74,243.72,243.65,6.75]
[1758271152189,6.74,243.72,243.63,3.44625927]
[1758271154087,99.98,243.73,243.62,10.19625927]
[1758271154491,6.74,243.72,243.62,10.19625927]
[1758271155689,6.74,243.72,243.63,3.78536774]
[1758271155992,6.74,243.72,243.64,3.78536774]
[1758271156190,6.74,243.72,243.65,3.78536774]
[1758271156384,6.74,243.72,243.66,3.78536774]
[1758271156685,6.74,243.72,243.62,10.19625927]
[1758271156885,99.98,243.73,243.62,10.19625927]
[1758271157093,6.74,243.72,243.62,10.19625927]
[1758271157295,99.98,243.73,243.62,10.19625927]
[1758271157701,6.74,243.72,243.62,10.19625927]
[1758271157903,99.98,243.73,243.62,10.19625927]
[1758271158600,6.74,243.72,243.62,3.44625927]
[1758271158800,6.74,243.72,243.63,6.75]
[1758271161402,6.74,243.72,243.63,10.19625927]
[1758271162102,6.74,243.72,243.64,3.44625927]
[1758271162302,6.74,243.72,243.65,6.75]
[1758271162502,99.98,243.71,243.65,6.75]
[1758271165006,6.74,243.7,243.64,3.44625927]
[1758271165204,6.74,243.7,243.63,3.44625927]
[1758271166101,99.98,243.71,243.6,10.19625927]
[1758271166999,6.74,243.69,243.6,10.19625927]
[1758271167202,37.42,243.68,243.61,10.19625927]
[1758271167405,6.74,243.69,243.63,6.75]
[1758271167606,59.22,243.69,243.63,6.75]
[1758271168203,59.22,243.69,243.62,3.44625927]
[1758271168402,6.66,243.68,243.6,10.29625927]
[1758271170007,6.66,243.68,243.6,3.44625927]
[1758271170204,6.66,243.68,243.61,6.85]
[1758271172006,6.66,243.68,243.61,10.29625927]
[1758271172210,6.66,243.68,243.62,6.85]
[1758271178910,6.66,243.68,243.63,3.62119134]
[1758271179115,30.9,243.7,243.64,10.47119134]
[1758271179408,6.66,243.69,243.65,3.62119134]
[1758271179603,6.66,243.69,243.66,3.62119134]
[1758271179809,6.66,243.69,243.67,3.62119134]
[1758271180111,6.66,243.69,243.64,6.85]
[1758271180313,6.66,243.69,243.61,6.85]
[1758271181318,6.66,243.69,243.61,10.29625927]
[1758271182610,6.66,243.69,243.61,3.44625927]
[1758271182818,6.66,243.69,243.62,6.85]
[1758271183917,6.66,243.75,243.62,6.85]
[1758271184111,6.66,243.75,243.62,3.44625927]
[1758271184112,60.18,243.75,243.62,3.44625927]
[1758271184317,6.66,243.74,243.63,6.85]
[1758271185115,60.18,243.75,243.63,3.44625927]
[1758271185317,6.66,243.74,243.64,6.85]
[1758271189020,97.86,243.74,243.64,6.85]
[1758271192426,99.96,243.73,243.64,6.85]
[1758271192924,6.66,243.72,243.64,6.85]
[1758271194124,6.66,243.72,243.65,6.85]
[1758271194320,99.94,243.73,243.65,6.85]
[1758271195329,99.94,243.73,243.67,6.85]
[1758271196824,6.73,243.72,243.66,3.44625927]
[1758271201429,6.73,243.72,243.65,10.00625927]
[1758271203831,6.73,243.72,243.65,6.56]
[1758271207030,6.73,243.72,243.64,3.44625927]
[1758271208336,6.73,243.72,243.65,3.60423632]
[1758271208638,6.73,243.72,243.66,3.60423632]
[1758271208841,99.94,243.73,243.67,3.60423632]
[1758271209035,99.94,243.73,243.68,3.60423632]
[1758271209234,6.74,243.72,243.69,3.60423632]
[1758271209534,6.74,243.72,243.64,3.44625927]
[1758271211440,6.74,243.72,243.65,3.44625927]
[1758271212840,6.74,243.72,243.65,10.00625927]
[1758271219138,6.74,243.72,243.66,6.56]
[1758271219844,6.74,243.72,243.66,10.00625927]
[1758271220046,6.74,243.72,243.66,3.44625927]
[1758271220440,6.74,243.72,243.67,6.56]
[1758271220844,99.9,243.71,243.67,6.56]
[1758271221042,106.64,243.71,243.66,3.44625927]
[1758271221648,6.74,243.7,243.67,6.56]
[1758271222350,6.74,243.7,243.66,3.44625927]
[1758271223450,6.74,243.7,243.67,6.56]
[1758271223650,99.9,243.71,243.66,3.44625927]
[1758271223853,99.9,243.71,243.67,6.56]
[1758271224054,106.64,243.71,243.67,6.56]
[1758271224452,106.64,243.71,243.66,3.44625927]
[1758271224754,106.64,243.71,243.67,6.56]
[1758271224949,99.9,243.71,243.67,6.56]
[1758271225149,6.74,243.7,243.67,6.56]
[1758271225454,6.74,243.7,243.67,10.00625927]
[1758271226154,6.74,243.7,243.67,3.44625927]
[1758271226352,6.74,243.7,243.66,3.44625927]
[1758271226553,6.74,243.7,243.67,6.56]
[1758271226951,6.74,243.7,243.66,3.44625927]
[1758271227152,6.74,243.7,243.67,3.44625927]
[1758271227354,6.74,243.7,243.68,6.56]
[1758271228054,6.74,243.7,243.65,3.44625927]
[1758271228357,6.74,243.7,243.61,6.56]
[1758271228358,8.16291843,243.7,243.63,3.44625927]
[1758271228563,8.16291843,243.7,243.64,3.60536101]
[1758271228863,8.16291843,243.7,243.65,3.60536101]
[1758271229062,8.16291843,243.7,243.66,3.60536101]
[1758271229263,8.16291843,243.7,243.67,3.60536101]
[1758271229563,8.16291843,243.7,243.62,3.44625927]
[1758271230864,6.74,243.69,243.61,10.00625927]
[1758271231264,6.74,243.69,243.61,6.56]
[1758271232954,6.74,243.69,243.61,7.98291843]
[1758271238563,6.74,243.69,243.61,6.56]
[1758271238965,6.74,243.69,243.62,1.42291843]
[1758271239167,6.74,243.69,243.63,6.78]
[1758271248266,6.74,243.69,243.59,10.22625927]
[1758271248471,6.74,243.69,243.6,6.78]
[1758271248673,6.74,243.69,243.61,3.73051798]
[1758271248870,6.74,243.69,243.62,10.51051798]
[1758271249072,6.74,243.69,243.63,3.73051798]
[1758271249371,1.42291843,243.7,243.64,3.73051798]
[1758271249670,1.42291843,243.7,243.62,6.78]
[1758271249860,6.74,243.69,243.62,6.78]
[1758271251971,1.42291843,243.7,243.62,8.20291843]
[1758271252174,99.88,243.69,243.62,8.20291843]
[1758271253676,99.88,243.69,243.62,6.78]
[1758271253978,99.88,243.69,243.62,8.20291843]
[1758271258881,99.88,243.69,243.63,3.69187436]
[1758271259080,99.88,243.69,243.64,3.69187436]
[1758271259279,99.88,243.69,243.65,3.69187436]
[1758271259578,99.88,243.69,243.66,3.69187436]
[1758271259777,6.74,243.68,243.67,3.69187436]
[1758271259977,6.74,243.68,243.62,1.42291843]
[1758271260686,6.74,243.68,243.61,11.7491777]
[1758271262084,6.74,243.68,243.61,8.30291843]
[1758271262288,6.74,243.68,243.61,6.88]
[1758271262583,6.74,243.68,243.61,8.30291843]
[1758271263788,6.74,243.68,243.61,6.88]
[1758271265185,6.74,243.68,243.61,10.32625927]
[1758271266686,6.74,243.68,243.61,3.44625927]
[1758271266894,6.74,243.68,243.6,3.44625927]
[1758271267483,6.74,243.68,243.6,3.45789537]
[1758271269109,6.74,243.68,243.61,3.73124546]
[1758271269395,6.74,243.68,243.62,3.73124546]
[1758271269585,6.74,243.68,243.63,3.73124546]
[1758271269786,99.88,243.69,243.64,3.73124546]
[1758271269991,6.74,243.68,243.61,6.88]
[1758271270292,6.74,243.68,243.61,10.33789537]
[1758271271193,6.74,243.68,243.62,6.88]
[1758271271393,6.74,243.68,243.62,10.33789537]
[1758271271595,6.74,243.68,243.62,3.45789537]
[1758271273587,6.74,243.68,243.63,6.88]
[1758271273791,6.74,243.68,243.62,3.45789537]
[1758271274498,6.74,243.68,243.63,6.88]
[1758271275193,6.74,243.68,243.62,3.45789537]
[1758271275993,6.74,243.68,243.63,6.88]
[1758271276298,6.74,243.68,243.62,3.45789537]
[1758271276598,6.74,243.68,243.63,6.88]
[1758271276797,6.74,243.68,243.62,3.45789537]
[1758271277191,6.74,243.68,243.63,6.88]
[1758271277396,6.74,243.68,243.62,10.33789537]
[1758271277898,106.58,243.67,243.63,6.88]
[1758271278096,20.34,243.66,243.62,3.45789537]
[1758271278290,20.34,243.66,243.63,6.88]
[1758271278693,0.71451303,243.67,243.62,3.45789537]
[1758271278889,0.71451303,243.67,243.64,3.45789537]
[1758271279101,6.74,243.74,243.66,6.88]
[1758271279294,34.4,243.73,243.67,3.65374595]
[1758271279502,6.74,243.7,243.68,3.65374595]
[1758271279700,6.74,243.7,243.69,3.65374595]
[1758271280091,6.74,243.7,243.66,6.88]
[1758271280400,6.74,243.7,243.67,3.65244397]
[1758271280998,0.71443969,243.71,243.67,3.65244397]
[1758271281198,6.74,243.7,243.66,6.88]
[1758271281397,0.71443969,243.71,243.66,6.88]
[1758271281894,6.74,243.7,243.66,6.88]
[1758271282098,0.71443969,243.71,243.65,3.45789537]
[1758271282291,6.74,243.7,243.64,3.45789537]
[1758271285395,6.74,243.7,243.65,6.88]
[1758271285600,0.71443969,243.71,243.64,3.45789537]
[1758271285901,7.45443969,243.71,243.65,6.88]
[1758271287993,7.45443969,243.71,243.64,3.45789537]
[1758271290808,6.73,243.7,243.63,10.20789537]
[1758271291205,6.73,243.7,243.62,3.45789537]
[1758271291406,6.73,243.7,243.61,3.45789537]
[1758271291708,0.71443969,243.71,243.59,10.20789537]
[1758271292401,0.71443969,243.71,243.59,6.75]
[1758271292612,6.73,243.7,243.59,6.75]
[1758271299204,6.73,243.7,243.6,3.62611605]
[1758271299403,6.73,243.7,243.62,6.75]
[1758271299610,71.61,243.7,243.63,3.62611605]
[1758271299908,71.61,243.7,243.64,3.62611605]
[1758271300105,64.88,243.7,243.65,10.37611605]
[1758271300306,64.88,243.7,243.65,6.75]
[1758271300506,6.73,243.69,243.65,6.75]
[1758271301212,64.88,243.7,243.65,6.75]
[1758271301404,6.73,243.69,243.65,6.75]
[1758271301909,64.88,243.7,243.65,6.75]
[1758271302209,6.73,243.69,243.65,6.75]
[1758271302508,100.81,243.7,243.65,6.75]
[1758271302703,6.73,243.69,243.65,6.75]
[1758271303011,94.08,243.7,243.65,6.75]
[1758271303402,6.73,243.69,243.65,6.75]
[1758271303814,94.08,243.7,243.65,6.75]
[1758271305606,6.73,243.7,243.65,6.75]
[1758271305806,6.73,243.68,243.65,6.75]
[1758271307207,0.71443969,243.71,243.62,6.75]
[1758271307414,99.82,243.7,243.63,6.75]
[1758271310115,0.71443969,243.71,243.63,6.75]
[1758271310315,0.71443969,243.71,243.64,3.45799884]
[1758271310617,0.71443969,243.71,243.65,6.75]
[1758271313515,6.73,243.75,243.66,3.45799884]
[1758271313816,0.7143517,243.74,243.67,6.75]
[1758271314126,0.7143517,243.74,243.69,6.75]
[1758271314412,0.7143517,243.74,243.71,6.75]
[1758271314618,0.7143517,243.74,243.72,3.67018623]
[1758271314820,0.7143517,243.74,243.73,10.42018623]
[1758271315017,75.18,243.8,243.73,10.42018623]
[1758271315215,0.71420509,243.77,243.74,3.67018623]
[1758271315413,0.71420509,243.77,243.76,6.75]
[1758271315614,0.71420509,243.77,243.76,10.42018623]
[1758271316418,0.71420509,243.77,243.76,6.75]
[1758271318024,99.8,243.81,243.73,6.67]
[1758271318320,0.71412448,243.8,243.73,6.67]
[1758271319422,7.20412448,243.8,243.73,6.67]
[1758271321423,7.20412448,243.8,243.68,6.49]
[1758271324318,99.76,243.79,243.68,6.49]
[1758271325828,99.76,243.79,243.69,1.42222714]
[1758271326021,99.76,243.79,243.7,6.49]
[1758271328321,1.42222714,243.77,243.7,6.49]
[1758271328530,6.49,243.76,243.65,6.49]
[1758271329726,6.49,243.76,243.68,6.49]
[1758271332438,6.49,243.76,243.69,3.68854914]
[1758271332736,6.49,243.76,243.7,3.68854914]
[1758271332937,6.49,243.78,243.71,3.68854914]
[1758271333132,6.49,243.78,243.72,3.68854914]
[1758271333431,99.76,243.79,243.73,3.68854914]
[1758271333632,99.76,243.79,243.74,3.68854914]
[1758271333835,6.49,243.78,243.75,3.68854914]
[1758271334034,6.49,243.78,243.71,6.49]
[1758271334035,6.49,243.78,243.76,3.68854914]
[1758271334331,6.49,243.78,243.77,3.68854914]
[1758271334534,99.76,243.79,243.77,3.68854914]
[1758271334733,99.76,243.79,243.78,3.68854914]
[1758271339435,7.91222714,243.86,243.78,3.68854914]
[1758271339638,99.76,243.85,243.79,3.68854914]
[1758271339842,6.49,243.84,243.8,3.68854914]
[1758271340033,6.49,243.84,243.81,3.68854914]
[1758271340239,100.47404389,243.85,243.82,3.68854914]
[1758271340429,6.49,243.84,243.83,3.68854914]
[1758271342337,6.49,243.84,243.77,6.49]
[1758271342530,6.49,243.84,243.78,3.68662832]
[1758271342729,100.47404389,243.85,243.79,3.68662832]
[1758271342930,100.47404389,243.85,243.8,3.68662832]
[1758271343132,100.47404389,243.85,243.81,3.68662832]
[1758271343330,6.49,243.84,243.82,3.68662832]
[1758271343540,6.49,243.84,243.77,6.49]
[1758271343741,6.49,243.84,243.78,3.68669227]
[1758271343943,100.47404389,243.85,243.79,3.68669227]
[1758271344142,100.47404389,243.85,243.8,3.68669227]
[1758271344342,100.47404389,243.85,243.81,3.68669227]
[1758271344641,6.49,243.84,243.82,3.68669227]
[1758271344838,100.47404389,243.85,243.77,6.49]
[1758271345034,100.47404389,243.85,243.78,3.68701358]
[1758271345238,100.47404389,243.85,243.79,3.68701358]
[1758271345539,100.47404389,243.85,243.8,3.68701358]
[1758271345737,6.49,243.84,243.81,3.68701358]
[1758271345930,6.49,243.84,243.82,3.68701358]
[1758271346134,6.49,243.84,243.83,3.68701358]
[1758271347739,100.47404389,243.85,243.83,3.68701358]
[1758271347944,100.47404389,243.85,243.77,1.42222714]
[1758271347945,100.47404389,243.85,243.84,3.67951388]
[1758271349142,107.20404389,243.85,243.84,3.67951388]
[1758271349444,100.47404389,243.85,243.84,3.67951388]
[1758271353946,107.20404389,243.85,243.84,3.67951388]
[1758271357047,100.47404389,243.85,243.84,3.67951388]
[1758271357653,107.20404389,243.85,243.84,3.67951388]
[1758271358952,106.49,243.85,243.84,3.67951388]
[1758271359349,1.74982,243.87,243.84,3.67951388]
[1758271359552,1.74982,243.87,243.85,10.46951388]
[1758271359754,1.74982,243.87,243.86,3.67951388]
[1758271360252,1.74982,243.87,243.86,10.46951388]
[1758271365056,1.74982,243.87,243.86,11.89174102]
[1758271373959,1.74982,243.87,243.86,12.31174102]
[1758271376164,36.24,243.96,243.87,6.79]
[1758271376367,36.95378759,243.96,243.9,8.21222714]
[1758271376566,6.73,243.95,243.91,10.66951388]
[1758271376765,6.73,243.95,243.92,3.67951388]
[1758271376967,6.73,243.95,243.93,3.67951388]
[1758271377169,6.73,243.95,243.94,3.67951388]
[1758271388577,6.73,243.95,243.87,6.82]
[1758271388880,6.73,243.95,243.88,3.67877207]
[1758271389083,6.73,243.95,243.89,3.67877207]
[1758271389282,6.73,243.95,243.9,3.67877207]
[1758271389478,6.73,243.95,243.91,3.67877207]
[1758271389676,6.73,243.95,243.92,3.67877207]
[1758271389878,6.73,243.95,243.93,3.67877207]
[1758271390077,6.73,243.95,243.87,6.82]
[1758271390273,6.73,243.95,243.88,3.67944453]
[1758271390481,6.73,243.95,243.89,3.67997401]
[1758271390784,6.73,243.95,243.9,3.67997401]
[1758271390984,6.73,243.95,243.91,3.67997401]
[1758271391188,6.73,243.95,243.92,3.67997401]
[1758271391486,6.73,243.95,243.93,3.67997401]
[1758271391675,6.73,243.95,243.85,6.82]
[1758271391879,6.73,243.95,243.86,3.68057442]
[1758271392085,6.73,243.95,243.88,6.82]
[1758271392286,6.73,243.95,243.89,3.68057442]
[1758271392487,43.67378759,243.96,243.9,3.68057442]
[1758271392690,36.95378759,243.96,243.91,10.50057442]
[1758271392890,36.95378759,243.96,243.92,3.68057442]
[1758271393085,6.72,243.95,243.93,3.68057442]
[1758271393389,6.72,243.95,243.94,3.68057442]
[1758271398690,6.72,243.95,243.94,3.68363104]
[1758271401092,36.95378759,243.96,243.95,6.82]
[1758271401292,36.95378759,243.96,243.95,10.50363104]
[1758271405893,6.72,243.99,243.95,3.68363104]
[1758271406087,6.72,243.99,243.96,10.50363104]
[1758271406396,6.72,243.99,243.97,3.68363104]
[1758271406598,6.72,243.99,243.98,3.68363104]
[1758271415806,0.71357536,244.0,243.98,3.68363104]
[1758271416101,0.71357536,244.0,243.93,2.21851936]
[1758271416102,0.71357536,244.0,243.99,10.42363104]
[1758271416710,7.43357536,244.0,243.99,3.68363104]
[1758271418708,0.71357536,244.0,243.99,10.42363104]
[1758271423005,0.71357536,244.0,243.99,10.38707722]
[1758271425611,7.43357536,244.0,243.99,3.64707722]
[1758271426005,7.43357536,244.0,243.95,6.74]
[1758271426309,0.71357536,244.0,243.92,6.74]
[1758271431610,0.71357536,244.0,243.93,3.45036357]
[1758271431817,0.71357536,244.0,243.94,6.74]
[1758271436217,7.43357536,244.0,243.94,6.74]
[1758271438822,0.71357536,244.0,243.94,6.74]
[1758271442025,6.72,243.99,243.92,6.62]